[Event "70th RUS-ch Women Higher League 2020"]
[Site "Sochi"]
[Date "2020.10.12"]
[Round "5.18"]
[White "Komissarova, Soigina"]
[Black "Salakhova, Adelya"]
[Result "1-0"]
[ECO "D37"]
[WhiteElo "1780"]
[BlackElo "1885"]
[Annotator "NA"]
[PlyCount "147"]
[EventDate "2020.10.08"]
[EventType "swiss"]
[EventCountry "RUS"]
[SourceTitle "playchess.com"]
[Source "ChessBase"]
[SourceQuality "1"]
[TimeControl "40/5400+30:1800+30"]

1. c4 {[%emt 0:00:00]} e6 {[%emt 0:00:00]} 2. Nf3 {[%emt 0:00:01]} Nf6 {[%emt 0:00:13]} 3. Nc3 {[%emt 0:00:46]} d5 {[%emt 0:00:23]} 4. d4 {[%emt 0:00:38]} Be7 {[%emt 0:02:58]} 5. Bf4 {[%emt 0:01:02]} O-O {[%emt 0:00:15]} 6. e3 {[%emt 0:01:16]} b6 {[%emt 0:02:33]} 7. cxd5 {[%emt 0:02:53]} exd5 {[%emt 0:02:10]} 8. Bd3 {[%emt 0:00:50]} c5 {[%emt 0:01:35]} 9. h3 {[%emt 0:02:57]} Bb7 {[%emt 0:09:01]} 10. O-O {[%emt 0:01:53]} Nbd7 {[%emt 0:05:44]} 11. Ne5 {[%emt 0:03:35]} a6 {[%emt 0:03:58]} 12. a4 {[%emt 0:01:46]} Rc8 {[%emt 0:09:25]} 13. Bh2 $11 {[%emt 0:03:11]} (13. Qf3 $14) 13... Ne4 {[%emt 0:07:09]} 14. Rc1 {[%emt 0:10:14]} Nxc3 {[%emt 0:14:08]} 15. bxc3 {[%emt 0:00:36]} Nxe5 {[%emt 0:04:14]} 16. Bxe5 {[%emt 0:00:56]} Bf6 17. Bf4 c4 {[%emt 0:09:50]} 18. Bf5 {[%emt 0:05:05]} Ra8 {[%emt 0:01:43]} 19. f3 {[%emt 0:07:22]} Re8 {[%emt 0:05:07]} 20. Re1 {[%emt 0:01:15]} b5 {[%emt 0:03:01]} 21. Bc2 {[%emt 0:04:39]} Qa5 {[%emt 0:01:33]} 22. Re2 Bc6 23. e4 {[%emt 0:04:00]} g6 {[%emt 0:03:23]} 24. Qe1 {[%emt 0:03:00]} Bg7 {[%emt 0:02:53]} 25. Bd6 {[%emt 0:05:06]} Qd8 {[%emt 0:01:03]} 26. Qg3 {[%emt 0:02:42]} Qd7 {[%emt 0:02:36]} 27. Ree1 {[%emt 0:01:54]} Rad8 {[%emt 0:01:11]} 28. e5 {[%emt 0:01:09]} Qa7 {[%emt 0:03:01]} 29. Bc5 {[%emt 0:01:56]} Qc7 {[%emt 0:00:53]} 30. f4 {[%emt 0:00:39]} f5 {[%emt 0:01:19]} 31. Qf3 {[%emt 0:04:17]} Kh8 {[%emt 0:01:49]} 32. Kh1 {[%emt 0:03:03]} Bd7 {[%emt 0:00:25]} 33. Bd6 {[%emt 0:00:56]} Qc6 {[%emt 0:00:46]} 34. Rg1 {[%emt 0:03:45]} Bf8 {[%emt 0:00:22]} 35. Bxf8 Rxf8 36. Qg3 {[%emt 0:07:55]} Be6 {[%emt 0:00:39]} 37. Qg5 {[%emt 0:00:25]} Rd7 {[%emt 0:00:47]} 38. h4 {[%emt 0:01:33]} b4 {[%emt 0:00:26]} 39. Qh6 {[%emt 0:02:19]} Rdf7 {[%emt 0:01:00]} 40. h5 {[%emt 0:00:00]} gxh5 {[%emt 0:00:00]} 41. Bd1 {[%emt 0:03:24]} Rg7 {[%emt 0:11:44]} 42. cxb4 {[%emt 0:02:37]} Qb6 {[%emt 0:05:16]} 43. Rc3 {[%emt 0:02:44]} Qxb4 {[%emt 0:00:58]} 44. Rh3 {[%emt 0:01:10]} Qe7 {[%emt 0:01:40]} 45. Qxh5 {[%emt 0:04:43]} Qd7 {[%emt 0:03:41]} 46. Qf3 {[%emt 0:03:01]} Qa7 {[%emt 0:01:19]} 47. Rh6 {[%emt 0:03:52]} Rg6 {[%emt 0:01:01]} 48. Qh3 {[%emt 0:03:30]} Rfg8 {[%emt 0:01:58]} 49. Bf3 {[%emt 0:01:35]} Qg7 {[%emt 0:03:23]} 50. Rh5 {[%emt 0:00:55]} Rg3 {[%emt 0:00:30]} 51. Qh2 {[%emt 0:00:16]} Rb8 {[%emt 0:00:47]} 52. Rh3 {[%emt 0:04:10]} Rxh3 {[%emt 0:02:13]} 53. gxh3 {[%emt 0:00:38]} Qh6 {[%emt 0:01:05]} 54. h4 {[%emt 0:02:32]} Rb3 {[%emt 0:00:56]} 55. Qg3 {[%emt 0:01:00]} Rb7 {[%emt 0:00:44]} 56. h5 {[%emt 0:02:24]} Rb8 {[%emt 0:01:16]} 57. Qh4 {[%emt 0:01:28]} c3 {[%emt 0:01:03]} 58. Bd1 {[%emt 0:01:31]} Rc8 {[%emt 0:00:49]} 59. Rg2 {[%emt 0:01:36]} Qf8 {[%emt 0:00:45]} 60. h6 {[%emt 0:00:19]} Bd7 {[%emt 0:00:40]} 61. Bc2 {[%emt 0:10:17]} Rc6 {[%emt 0:00:07]} 62. Rh2 {[%emt 0:00:42]} Rg6 {[%emt 0:00:24]} 63. Qf2 {[%emt 0:00:51]} Rxh6 {[%emt 0:00:16]} 64. Qe2 {[%emt 0:00:22]} Rxh2+ {[%emt 0:00:04]} 65. Kxh2 {[%emt 0:00:33]} Qh6+ {[%emt 0:00:10]} 66. Kg3 {[%emt 0:00:03]} Qb6 {[%emt 0:00:55]} 67. Qd3 {[%emt 0:00:28]} Qb2 {[%emt 0:00:28]} 68. Kf3 {[%emt 0:01:07]} h5 {[%emt 0:01:16]} 69. Kg3 {[%emt 0:00:20]} Kg7 {[%emt 0:00:15]} 70. Kh4 {[%emt 0:00:06]} Qc1 {[%emt 0:00:10]} 71. Qg3+ {[%emt 0:00:23]} Kh7 {[%emt 0:00:14]} 72. Kxh5 {[%emt 0:01:08]} Be8+ {[%emt 0:00:37]} 73. Kg5 {[%emt 0:00:15]} Qxc2 {[%emt 0:00:14]} 74. Kf6 {[%emt 0:00:20]} 1-0

[Event "70th RUS-ch Women Higher League 2020"]
[Site "Sochi"]
[Date "2020.10.14"]
[Round "6.1"]
[White "Garifullina, Leya"]
[Black "Guseva, Marina"]
[Result "1/2-1/2"]
[ECO "B12"]
[WhiteElo "2335"]
[BlackElo "2377"]
[Annotator "RC"]
[PlyCount "49"]
[EventDate "2020.10.08"]
[EventType "swiss"]
[EventCountry "RUS"]
[SourceTitle "playchess.com"]
[Source "ChessBase"]
[SourceQuality "1"]
[TimeControl "40/5400+30:1800+30"]

1. e4 {[%emt 0:00:00]} c6 {[%emt 0:00:00]} 2. d4 {[%emt 0:00:00]} d5 {[%emt 0:00:00]} 3. e5 {[%emt 0:00:00]} Bf5 {[%emt 0:00:00]} 4. Nf3 {[%emt 0:00:10]} e6 {[%emt 0:00:00]} 5. Be2 {[%emt 0:00:09]} Nd7 {[%emt 0:00:00]} 6. O-O {[%emt 0:00:07]} Ne7 {[%emt 0:00:00]} 7. Nbd2 {[%emt 0:00:06]} Bg6 {[%emt 0:00:04]} 8. Nb3 {[%emt 0:00:07]} Nf5 {[%emt 0:00:27]} 9. Bd2 {[%emt 0:00:17]} Rc8 {[%emt 0:06:22]} 10. Rc1 {[%emt 0:00:34]} h6 {[%emt 0:00:49]} 11. Ba5 {[%emt 0:01:56]} b6 {[%emt 0:01:20]} 12. Bd2 {[%emt 0:00:07]} Be7 {[%emt 0:00:49]} 13. c4 {[%emt 0:00:47]} dxc4 {[%emt 0:07:18]} 14. Rxc4 {[%emt 0:02:56]} O-O {[%emt 0:00:11]} 15. Bf4 {[%emt 0:07:32]} c5 {[%emt 0:23:30]} 16. dxc5 {[%emt 0:09:11]} Bxc5 {[%emt 0:12:32]} 17. Qc1 {[%emt 0:05:52]} Qe7 {[%emt 0:11:07]} 18. Nbd4 {[%emt 0:06:22]} Nxd4 {[%emt 0:04:07]} 19. Nxd4 {[%emt 0:00:06]} b5 {[%emt 0:00:32]} 20. Nxb5 {[%emt 0:02:16]} Nb6 {[%emt 0:00:50]} 21. Nxa7 {[%emt 0:08:42]} Rc7 {[%emt 0:07:50]} 22. Nb5 {[%emt 0:03:42]} Rc6 {[%emt 0:00:56]} 23. Na7 {[%emt 0:08:56]} Rc7 {[%emt 0:00:11]} 24. Nb5 {[%emt 0:00:59]} Rc6 {[%emt 0:00:04]} 25. Na7 {[%emt 0:02:26]} 1/2-1/2

[Event "70th RUS-ch Women Higher League 2020"]
[Site "Sochi"]
[Date "2020.10.14"]
[Round "6.2"]
[White "Kovalevskaya, Ekaterina"]
[Black "Gunina, Valentina"]
[Result "0-1"]
[ECO "B13"]
[WhiteElo "2384"]
[BlackElo "2431"]
[Annotator "RC"]
[PlyCount "74"]
[EventDate "2020.10.08"]
[EventType "swiss"]
[EventCountry "RUS"]
[SourceTitle "playchess.com"]
[Source "ChessBase"]
[SourceQuality "1"]
[TimeControl "40/5400+30:1800+30"]

1. e4 {[%emt 0:00:00]} c6 {[%emt 0:00:00]} 2. d4 {[%emt 0:00:00]} d5 {[%emt 0:00:00]} 3. exd5 {[%emt 0:00:00]} cxd5 {[%emt 0:00:00]} 4. c4 {[%emt 0:00:02]} Nf6 {[%emt 0:00:39]} 5. Nc3 {[%emt 0:00:31]} Nc6 {[%emt 0:00:39]} 6. Nf3 {[%emt 0:03:43]} a6 {[%emt 0:00:07]} 7. Bg5 {[%emt 0:20:33]} Be6 {[%emt 0:03:38]} 8. Be2 {[%emt 0:07:31]} g6 {[%emt 0:17:32]} 9. Bxf6 {[%emt 0:25:13]} exf6 {[%emt 0:00:16]} 10. O-O {[%emt 0:04:28]} Bg7 {[%emt 0:00:29]} 11. Qb3 {[%emt 0:05:59]} dxc4 {[%emt 0:08:47]} 12. Qxb7 {[%emt 0:04:33]} Na5 {[%emt 0:01:26]} 13. Qb4 {[%emt 0:05:06]} Rb8 {[%emt 0:02:29]} 14. Qa3 {[%emt 0:00:55]} Bf8 {[%emt 0:01:48]} 15. Qa4+ {[%emt 0:02:49]} Bd7 {[%emt 0:00:05]} 16. Qc2 {[%emt 0:00:38]} Bh6 {[%emt 0:00:21]} 17. Nd2 {[%emt 0:08:19]} O-O {[%emt 0:05:10]} 18. Nxc4 {[%emt 0:02:46]} Bf5 {[%emt 0:00:43]} 19. Qa4 {[%emt 0:01:58]} Nxc4 {[%emt 0:00:07]} 20. Bxc4 {[%emt 0:00:21]} Rxb2 {[%emt 0:00:25]} 21. Bb3 {[%emt 0:02:36]} Qd6 {[%emt 0:04:04]} 22. Nd5 {[%emt 0:00:39]} Bd3 {[%emt 0:03:08]} 23. Rfd1 {[%emt 0:00:47]} Bd2 {[%emt 0:10:34]} 24. Qc6 {[%emt 0:01:45]} Rd8 {[%emt 0:06:54]} 25. Nxf6+ {[%emt 0:00:35]} Kh8 {[%emt 0:00:01]} 26. d5 {[%emt 0:00:40]} Qf4 {[%emt 0:00:43]} 27. g3 {[%emt 0:00:30]} Qd4 {[%emt 0:01:06]} 28. Ne8 {[%emt 0:00:32]} Bc3 {[%emt 0:01:27]} 29. Rf1 {[%emt 0:00:24]} Bb5 {[%emt 0:00:55]} 30. Qc7 {[%emt 0:00:08]} Rxe8 {[%emt 0:00:44]} 31. Qxf7 {[%emt 0:00:02]} Qg7 {[%emt 0:01:02]} 32. Qxg7+ {[%emt 0:00:19]} Kxg7 {[%emt 0:00:01]} 33. Rfd1 {[%emt 0:00:25]} Ree2 {[%emt 0:00:28]} 34. d6 {[%emt 0:01:17]} Rxf2 {[%emt 0:00:19]} 35. Bd5 {[%emt 0:00:02]} Bb4 {[%emt 0:02:02]} 36. a4 {[%emt 0:00:53]} Bc5 {[%emt 0:00:22]} 37. Rac1 {[%emt 0:00:50]} Rf1# {[%emt 0:00:29]} 0-1

[Event "70th RUS-ch Women Higher League 2020"]
[Site "Sochi"]
[Date "2020.10.14"]
[Round "6.14"]
[White "Kochukova, Anna"]
[Black "Lysenko, Margarita"]
[Result "1/2-1/2"]
[ECO "B53"]
[WhiteElo "2093"]
[BlackElo "2239"]
[Annotator "RC"]
[PlyCount "119"]
[EventDate "2020.10.08"]
[EventType "swiss"]
[EventCountry "RUS"]
[SourceTitle "playchess.com"]
[Source "ChessBase"]
[SourceQuality "1"]
[TimeControl "40/5400+30:1800+30"]

1. e4 {[%emt 0:00:00]} c5 {[%emt 0:00:00]} 2. Nf3 {[%emt 0:00:00]} d6 {[%emt 0:00:15]} 3. d4 {[%emt 0:00:00]} cxd4 {[%emt 0:00:40]} 4. Qxd4 {[%emt 0:00:01]} Nc6 {[%emt 0:00:37]} 5. Bb5 {[%emt 0:00:11]} Bd7 {[%emt 0:00:19]} 6. Bxc6 {[%emt 0:00:07]} Bxc6 {[%emt 0:00:14]} 7. c4 {[%emt 0:00:09]} Nf6 {[%emt 0:00:24]} 8. Nc3 {[%emt 0:00:07]} g6 {[%emt 0:00:10]} 9. O-O {[%emt 0:00:13]} Bg7 {[%emt 0:00:08]} 10. Qd3 {[%emt 0:03:17]} O-O {[%emt 0:00:11]} 11. Nd4 {[%emt 0:02:53]} Rc8 {[%emt 0:06:06]} 12. Rd1 {[%emt 0:02:49]} Nd7 {[%emt 0:05:02]} 13. Qe2 {[%emt 0:02:22]} Nc5 {[%emt 0:06:57]} 14. Rb1 {[%emt 0:06:54]} Bd7 {[%emt 0:17:54]} 15. Be3 {[%emt 0:04:23]} a6 {[%emt 0:02:50]} 16. b4 {[%emt 0:06:51]} Na4 {[%emt 0:10:21]} 17. Nxa4 {[%emt 0:01:26]} Bxa4 {[%emt 0:00:04]} 18. Rdc1 {[%emt 0:02:12]} Bd7 {[%emt 0:03:45]} 19. Qd3 {[%emt 0:09:33]} Qc7 {[%emt 0:11:02]} 20. h4 {[%emt 0:12:44]} Rfd8 {[%emt 0:04:43]} 21. b5 {[%emt 0:02:44]} Rf8 {[%emt 0:11:10]} 22. bxa6 {[%emt 0:09:22]} bxa6 {[%emt 0:00:11]} 23. Qa3 {[%emt 0:00:18]} Ra8 {[%emt 0:08:15]} 24. Nb3 {[%emt 0:06:45]} Bc6 {[%emt 0:01:55]} 25. f3 {[%emt 0:03:14]} Rfb8 {[%emt 0:02:05]} 26. Na5 {[%emt 0:03:29]} Bf6 {[%emt 0:00:51]} 27. Bf2 {[%emt 0:06:33]} Bd7 {[%emt 0:00:12]} 28. Rb3 {[%emt 0:01:48]} Rxb3 {[%emt 0:00:35]} 29. axb3 {[%emt 0:02:23]} Rb8 {[%emt 0:02:15]} 30. b4 {[%emt 0:01:17]} e6 {[%emt 0:03:28]} 31. b5 {[%emt 0:04:58]} axb5 {[%emt 0:01:15]} 32. cxb5 {[%emt 0:00:03]} Qd8 {[%emt 0:00:18]} 33. Nc6 {[%emt 0:00:58]} Bxc6 {[%emt 0:00:10]} 34. bxc6 {[%emt 0:01:41]} Bb2 {[%emt 0:00:59]} 35. Qa7 {[%emt 0:00:38]} Rc8 {[%emt 0:01:05]} 36. Rb1 {[%emt 0:03:44]} Be5 {[%emt 0:00:31]} 37. Rc1 {[%emt 0:01:47]} d5 {[%emt 0:00:45]} 38. Qc5 {[%emt 0:00:31]} Bd6 {[%emt 0:00:40]} 39. Qd4 {[%emt 0:00:27]} dxe4 {[%emt 0:00:14]} 40. Qxe4 {[%emt 0:00:00]} Qf6 {[%emt 0:00:00]} 41. Bd4 {[%emt 0:10:34]} Qf4 {[%emt 0:05:44]} 42. Qxf4 {[%emt 0:00:54]} Bxf4 {[%emt 0:00:03]} 43. Rc4 {[%emt 0:00:26]} Bd6 {[%emt 0:04:37]} 44. Kf2 {[%emt 0:04:19]} e5 {[%emt 0:02:16]} 45. Bb6 {[%emt 0:01:06]} f6 {[%emt 0:01:20]} 46. Ke3 {[%emt 0:09:35]} Kf7 {[%emt 0:00:21]} 47. g4 {[%emt 0:00:59]} Ke6 {[%emt 0:03:57]} 48. Rc2 {[%emt 0:02:34]} Kd5 {[%emt 0:03:20]} 49. c7 {[%emt 0:00:00]} Ke6 {[%emt 0:01:42]} 50. h5 {[%emt 0:00:24]} Kd7 {[%emt 0:02:19]} 51. hxg6 {[%emt 0:00:25]} hxg6 {[%emt 0:00:14]} 52. Ke4 {[%emt 0:00:29]} Ke6 {[%emt 0:02:15]} 53. Kd3 {[%emt 0:01:52]} Kd5 {[%emt 0:02:35]} 54. Ba5 {[%emt 0:02:05]} f5 {[%emt 0:01:46]} 55. Ke3 {[%emt 0:01:34]} Ke6 {[%emt 0:02:11]} 56. Rc6 {[%emt 0:01:19]} Kd7 {[%emt 0:01:09]} 57. Ra6 {[%emt 0:00:13]} Rg8 {[%emt 0:02:02]} 58. Kd3 {[%emt 0:00:16]} Bxc7 {[%emt 0:01:24]} 59. Bxc7 {[%emt 0:00:33]} Kxc7 {[%emt 0:00:09]} 60. Re6 {[%emt 0:00:11]} 1/2-1/2

[Event "70th RUS-ch Women Higher League 2020"]
[Site "Sochi"]
[Date "2020.10.15"]
[Round "7.11"]
[White "Bykova, Anastasia"]
[Black "Garmash, Aliona"]
[Result "0-1"]
[ECO "E63"]
[WhiteElo "2215"]
[BlackElo "2093"]
[Annotator "NA"]
[PlyCount "80"]
[EventDate "2020.10.08"]
[EventType "swiss"]
[EventCountry "RUS"]
[SourceTitle "playchess.com"]
[Source "ChessBase"]
[SourceQuality "1"]
[TimeControl "40/5400+30:1800+30"]

1. d4 {[%emt 0:00:00]} Nf6 {[%emt 0:00:00]} 2. c4 {[%emt 0:00:00]} g6 {[%emt 0:00:00]} 3. Nf3 {[%emt 0:00:05]} Bg7 {[%emt 0:00:00]} 4. g3 {[%emt 0:00:04]} O-O {[%emt 0:00:00]} 5. Bg2 {[%emt 0:00:05]} d6 {[%emt 0:00:03]} 6. O-O {[%emt 0:00:05]} Nc6 {[%emt 0:00:07]} 7. Nc3 {[%emt 0:00:11]} a6 {[%emt 0:00:07]} 8. Bf4 {[%emt 0:00:17]} Rb8 {[%emt 0:00:17]} 9. Rc1 {[%emt 0:00:06]} h6 {[%emt 0:00:15]} 10. Qd3 {[%emt 0:17:00]} Bg4 {[%emt 0:17:06]} 11. d5 {[%emt 0:05:42]} e5 {[%emt 0:01:43]} 12. dxc6 {[%emt 0:12:15]} exf4 {[%emt 0:00:08]} 13. Nd4 {[%emt 0:00:58]} fxg3 {[%emt 0:09:47]} 14. hxg3 {[%emt 0:05:11]} Bc8 $11 {[%emt 0:05:29]} 15. b4 {[%emt 0:05:13]} Ng4 {[%emt 0:02:36]} 16. cxb7 {[%emt 0:05:41]} Bxb7 {[%emt 0:03:18]} 17. Bxb7 {[%emt 0:01:49]} Rxb7 {[%emt 0:00:05]} 18. Qe4 {[%emt 0:03:39]} Bxd4 {[%emt 0:03:43]} 19. Qxb7 {[%emt 0:02:28]} Nxf2 {[%emt 0:23:28]} 20. Kg2 {[%emt 0:15:42]} Ng4 {[%emt 0:01:00]} 21. Nd1 {[%emt 0:05:01]} Qg5 {[%emt 0:09:27]} 22. Rc2 {[%emt 0:00:22]} Qh5 {[%emt 0:05:30]} 23. Rh1 {[%emt 0:00:47]} Qf5 {[%emt 0:00:06]} 24. Rd2 {[%emt 0:04:52]} Be3 {[%emt 0:07:10]} 25. Rd3 {[%emt 0:01:56]} Re8 {[%emt 0:01:19]} 26. Qf3 {[%emt 0:07:36]} Qg5 {[%emt 0:00:11]} 27. Rf1 {[%emt 0:00:33]} f5 {[%emt 0:01:35]} 28. Qc6 {[%emt 0:01:15]} Re7 {[%emt 0:00:12]} 29. Qxa6 {[%emt 0:02:21]} Bb6 {[%emt 0:03:15]} 30. Qa8+ {[%emt 0:01:23]} Kg7 {[%emt 0:00:05]} 31. Nc3 {[%emt 0:02:02]} Ne3+ {[%emt 0:01:15]} 32. Rxe3 {[%emt 0:00:02]} Rxe3 {[%emt 0:01:05]} 33. Rf3 {[%emt 0:00:08]} Bd4 {[%emt 0:00:32]} 34. Qc6 {[%emt 0:01:36]} Bxc3 {[%emt 0:00:42]} 35. Rxe3 {[%emt 0:00:21]} Qxe3 {[%emt 0:00:05]} 36. Qxc7+ {[%emt 0:00:07]} Kg8 {[%emt 0:00:27]} 37. Qd8+ {[%emt 0:00:44]} Kh7 {[%emt 0:00:05]} 38. Qc7+ {[%emt 0:00:49]} Bg7 {[%emt 0:00:06]} 39. Qxd6 {[%emt 0:00:32]} Qxe2+ {[%emt 0:00:07]} 40. Kh3 {[%emt 0:00:00]} g5 {[%emt 0:00:00]} 0-1

[Event "70th RUS-ch Women Higher League 2020"]
[Site "Sochi"]
[Date "2020.10.15"]
[Round "7.16"]
[White "Miroshnik, Ekaterina"]
[Black "Makarova, Olga"]
[Result "1-0"]
[ECO "D02"]
[WhiteElo "2104"]
[BlackElo "1875"]
[Annotator "NA"]
[PlyCount "103"]
[EventDate "2020.10.08"]
[EventType "swiss"]
[EventCountry "RUS"]
[SourceTitle "playchess.com"]
[Source "ChessBase"]
[SourceQuality "1"]
[TimeControl "40/5400+30:1800+30"]

1. d4 {[%emt 0:00:00]} d5 {[%emt 0:00:00]} 2. Nf3 {[%emt 0:00:00]} Nf6 {[%emt 0:00:00]} 3. c4 {[%emt 0:00:00]} e6 {[%emt 0:00:00]} 4. e3 {[%emt 0:00:00]} Be7 {[%emt 0:00:19]} 5. Bd3 {[%emt 0:00:00]} dxc4 {[%emt 0:04:52]} 6. Bxc4 {[%emt 0:00:00] D30: Queen's Gambit Declined: Systems without Nc3.} a6 {[%emt 0:01:52]} 7. O-O {[%emt 0:00:07]} b5 {[%emt 0:00:35]} 8. Be2 {[%emt 0:00:05] The position is equal.} Bb7 {[%emt 0:00:20]} 9. b3 {[%emt 0:00:07]} O-O {[%emt 0:00:29]} 10. Bb2 {[%emt 0:00:03]} Nbd7 {[%emt 0:01:02]} 11. Nbd2 {[%emt 0:00:04]} c5 {[%emt 0:03:35]} 12. a4 {[%emt 0:00:04]} b4 {[%emt 0:15:24]} 13. Rc1 {[%emt 0:01:43]} Rc8 {[%emt 0:06:09]} 14. Nc4 {[%emt 0:02:08]} cxd4 {[%emt 0:08:58] [#]} 15. exd4 $146 {[%emt 0:02:13]} ({Predecessor:} 15. Bxd4 Nd5 16. Qd2 Rc7 17. Nfe5 Bf6 18. f4 Nc3 19. Bxc3 bxc3 20. Qxc3 Bd5 21. Qd2 Nc5 22. Rb1 h6 23. Qb4 Bxe5 24. Nxe5 Qa8 25. Qa5 Rfc8 26. Rfc1 {½-½ (26) Matei,C (2483)-Lins,T (2469) ICCF email 2014}) 15... Ne4 {[%emt 0:02:45]} 16. Bd3 {[%emt 0:05:20]} Ndf6 {[%emt 0:03:42]} 17. Qe2 {[%emt 0:02:24]} Nd6 {[%emt 0:03:46]} 18. Nce5 {[%emt 0:08:20]} Qa5 {[%emt 0:09:04] Av CentiPawn Loss W=-6/B=-9. Weighted=-6/-9} 19. Nd2 {[%emt 0:17:50]} Nd5 {[%emt 0:13:21]} 20. Rxc8 {[%emt 0:13:36]} Nxc8 {[%emt 0:07:42]} 21. Qf3 {[%emt 0:01:26]} Nd6 {[%emt 0:01:03]} 22. Nd7 {[%emt 0:06:51]} Nf6 {[%emt 0:00:24]} 23. Qh3 {[%emt 0:01:01]} Rc8 {[%emt 0:05:00]} 24. Nc5 {[%emt 0:01:57]} Rc7 {[%emt 0:03:50]} 25. Re1 {[%emt 0:05:48]} Bc8 {[%emt 0:01:17]} 26. Qg3 {[%emt 0:00:40]} Qb6 {[%emt 0:01:39]} 27. Nf3 {[%emt 0:05:55]} Nde8 {[%emt 0:00:47]} 28. Ne5 {[%emt 0:05:25]} Bxc5 {[%emt 0:01:04]} 29. dxc5 {[%emt 0:00:05]} Qxc5 {[%emt 0:00:29]} 30. Nc4 {[%emt 0:00:58]} Qe7 {[%emt 0:02:39]} 31. f4 {[%emt 0:13:05]} h6 {[%emt 0:01:38]} 32. Kh1 {[%emt 0:01:58]} Nh5 {[%emt 0:01:40]} 33. Qg4 {[%emt 0:03:42]} Nhf6 {[%emt 0:00:30]} 34. Qe2 {[%emt 0:00:12]} Qd7 {[%emt 0:00:31]} 35. Nb6 {[%emt 0:01:12]} Qc6 {[%emt 0:00:32]} 36. Nxc8 {[%emt 0:00:23]} Rxc8 {[%emt 0:00:02]} 37. Bxa6 {[%emt 0:00:07]} Rd8 {[%emt 0:00:18]} 38. Bb5 {[%emt 0:01:11]} Qd6 {[%emt 0:00:18]} 39. Be5 {[%emt 0:00:46]} Qd5 {[%emt 0:00:22]} 40. Bc4 {[%emt 0:00:00]} Qc5 {[%emt 0:00:00]} 41. h3 {[%emt 0:11:34]} Nd5 {[%emt 0:03:02]} 42. Qd2 {[%emt 0:05:09]} Ra8 {[%emt 0:08:03]} 43. Rc1 {[%emt 0:05:54]} Rc8 {[%emt 0:02:05]} 44. Ra1 {[%emt 0:05:03]} Ra8 {[%emt 0:02:47]} 45. Rd1 {[%emt 0:03:52]} Nef6 {[%emt 0:00:58]} 46. Bd4 {[%emt 0:00:58]} Qa5 {[%emt 0:01:52]} 47. Qf2 {[%emt 0:01:36]} Nc3 {[%emt 0:06:13]} 48. Re1 {[%emt 0:00:54]} Nfe4 {[%emt 0:00:25]} 49. Qf3 {[%emt 0:00:54]} Nd2 {[%emt 0:01:42]} 50. Qg3 {[%emt 0:00:25]} g6 {[%emt 0:01:20]} 51. Bxe6 {[%emt 0:00:35]} Nde4 {[%emt 0:00:41]} 52. Qxg6+ {[%emt 0:00:06]} 1-0

[Event "70th RUS-ch Women Higher League 2020"]
[Site "Sochi"]
[Date "2020.10.15"]
[Round "7.17"]
[White "Salakhova, Adelya"]
[Black "Mukhina, Jana"]
[Result "1/2-1/2"]
[ECO "E62"]
[WhiteElo "1885"]
[BlackElo "2025"]
[Annotator "ChessBase"]
[PlyCount "116"]
[EventDate "2020.10.08"]
[EventType "swiss"]
[EventCountry "RUS"]
[SourceTitle "playchess.com"]
[Source "ChessBase"]
[SourceQuality "1"]
[TimeControl "40/5400+30:1800+30"]

1. d4 {[%emt 0:00:00]} Nf6 {[%emt 0:00:00]} 2. c4 {[%emt 0:00:00]} g6 {[%emt 0:00:34]} 3. g3 {[%emt 0:00:00]} Bg7 {[%emt 0:00:09]} 4. Bg2 {[%emt 0:00:00]} O-O {[%emt 0:00:12]} 5. Nc3 {[%emt 0:00:03]} d6 {[%emt 0:00:06]} 6. Nf3 {[%emt 0:00:05]} Nc6 {[%emt 0:00:08]} 7. O-O {[%emt 0:00:07]} e5 {[%emt 0:00:03]} 8. d5 {[%emt 0:02:37]} Ne7 {[%emt 0:00:02]} 9. c5 {[%emt 0:00:06]} dxc5 {[%emt 0:11:43]} 10. Nxe5 {[%emt 0:00:14]} Nfxd5 {[%emt 0:08:10]} 11. Nxd5 {[%emt 0:00:25]} Bxe5 {[%emt 0:06:14]} 12. Bg5 {[%emt 0:00:57]} f6 {[%emt 0:03:34]} 13. Nxf6+ {[%emt 0:02:01]} Bxf6 {[%emt 0:03:21]} 14. Qxd8 {[%emt 0:00:10]} Rxd8 {[%emt 0:00:01]} 15. Bxf6 {[%emt 0:00:08]} Kf7 {[%emt 0:00:36]} 16. Bxe7 {[%emt 0:09:13]} Kxe7 {[%emt 0:00:49]} 17. Rfc1 {[%emt 0:02:31]} Rd2 {[%emt 0:01:29]} 18. Rxc5 {[%emt 0:00:08]} c6 {[%emt 0:00:35]} 19. Re5+ {[%emt 0:03:50]} Kf6 {[%emt 0:03:32]} 20. f4 {[%emt 0:13:38]} Bg4 {[%emt 0:07:05]} 21. Kf2 {[%emt 0:00:41]} Rxb2 {[%emt 0:10:22]} 22. Rd1 {[%emt 0:10:20]} Kf7 {[%emt 0:00:13]} 23. h3 {[%emt 0:08:02]} Be6 {[%emt 0:00:36]} 24. g4 {[%emt 0:04:14]} Re8 {[%emt 0:01:43]} 25. a3 {[%emt 0:12:46]} Bc4 {[%emt 0:05:12]} 26. Rd7+ {[%emt 0:07:15]} Kf8 {[%emt 0:02:04]} 27. Rxe8+ {[%emt 0:00:08]} Kxe8 {[%emt 0:00:03]} 28. Rxh7 {[%emt 0:00:06]} Rxe2+ {[%emt 0:03:26]} 29. Kg3 {[%emt 0:00:27]} Bf7 {[%emt 0:07:04]} 30. Rh8+ {[%emt 0:01:49]} Ke7 {[%emt 0:00:01]} 31. Rb8 {[%emt 0:00:32]} Rb2 {[%emt 0:00:17]} 32. Be4 {[%emt 0:01:23]} a5 {[%emt 0:14:34]} 33. Kh4 {[%emt 0:01:50]} Rb5 {[%emt 0:01:34]} 34. Ra8 {[%emt 0:10:59]} c5 {[%emt 0:01:27]} 35. Ra7 {[%emt 0:02:07]} c4 {[%emt 0:08:45]} 36. Bxb7 {[%emt 0:00:17]} Kf8 {[%emt 0:01:08]} 37. Be4 {[%emt 0:02:15]} Rc5 {[%emt 0:00:50]} 38. Bc2 {[%emt 0:00:51]} Kg7 {[%emt 0:00:43]} 39. f5 {[%emt 0:04:41]} gxf5 {[%emt 0:00:04]} 40. gxf5 {[%emt 0:00:00]} Kf6 {[%emt 0:00:00]} 41. Ra6+ {[%emt 0:00:08]} Ke5 {[%emt 0:01:01]} 42. Kg5 {[%emt 0:00:36]} Kd4 {[%emt 0:02:43]} 43. Rb6 {[%emt 0:08:15]} Re5 {[%emt 0:09:57]} 44. h4 {[%emt 0:05:32]} Re2 {[%emt 0:01:26]} 45. Ba4 {[%emt 0:02:24]} Bd5 {[%emt 0:05:27]} 46. f6 {[%emt 0:01:47]} c3 {[%emt 0:01:40]} 47. Rd6 {[%emt 0:02:06]} Rg2+ {[%emt 0:01:40]} 48. Kh6 {[%emt 0:04:05]} c2 {[%emt 0:03:58]} 49. Bxc2 {[%emt 0:00:11]} Rxc2 {[%emt 0:00:07]} 50. Kg7 {[%emt 0:07:39]} Rg2+ {[%emt 0:01:49]} 51. Kh6 {[%emt 0:04:11]} Rf2 {[%emt 0:01:35]} 52. Kg7 {[%emt 0:00:36]} Rg2+ {[%emt 0:00:18]} 53. Kh6 {[%emt 0:00:28]} Ke5 {[%emt 0:01:40]} 54. Rxd5+ {[%emt 0:00:09]} Kxd5 {[%emt 0:00:05]} 55. f7 {[%emt 0:00:05]} Rf2 {[%emt 0:00:04]} 56. Kg7 {[%emt 0:00:05]} Rg2+ {[%emt 0:00:06]} 57. Kf6 {[%emt 0:00:43]} Rf2+ {[%emt 0:00:12]} 58. Ke7 {[%emt 0:00:09]} Re2+ {[%emt 0:00:06]} 1/2-1/2